Cogmind - Beta 13 *** ADVENTURER MODE // 2024.04.06 @ 19:26:29 Player: Scribs Result: Self-destructed Performance ------------- Evolutions (3) 1500 Regions Visited (6) 1200 Robots Destroyed (51) 255 Value Destroyed (1438) 1438 Prototype IDs (1) 20 Alien Tech Used (0) 0 Bonus (0) 0 TOTAL SCORE: 4413 Bonus ------- None Cogmind --------- Core Integrity 638/700 Matter 256/300 Energy 7/100 System Corruption 0% Temperature Cool (0) Movement Walking (190) Ox1 Location -7/Factory Parts ------- > --- POWER (2) -------- (None) > --- PROPULSION (5) --- Aluminum Leg Aluminum Leg Aluminum Leg > --- UTILITY (3) ------ Large Storage Unit Improved Sensor Array Transmission Jammer > --- WEAPON (3) ------- Heavy Ion Cannon Remote Datajack > --- INVENTORY (15) --- Improved Ion Engine Improved Heat Sink Improved Cooling System Coolant Injector Large Storage Unit Structural Scanner Visual Processing Unit Improved Terrain Scanner Microactuators Medium Reactive Plating Hardlight Generator Beam Rifle Beam Rifle Particle Gun Improved Datajack Peak State ------------ > --- POWER ------------ Light Ion Engine Light Nuclear Core > --- PROPULSION ------- Aluminum Leg Aluminum Leg Aluminum Leg Aluminum Leg Aluminum Leg > --- UTILITY ---------- Large Storage Unit Improved Sensor Array Transmission Jammer > --- WEAPON ----------- Heavy Ion Cannon Heavy Assault Rifle Remote Datajack > --- INVENTORY -------- Improved Ion Engine Improved Heat Sink Improved Cooling System Coolant Injector Large Storage Unit Structural Scanner Visual Processing Unit Improved Terrain Scanner Microactuators Medium Reactive Plating Hardlight Generator Beam Rifle Beam Rifle Particle Gun Improved Datajack [Rating: 31] Favorites ----------- Power Light Nuclear Core Engine Light Ion Engine Power Core Light Nuclear Core Propulsion Aluminum Leg Leg Aluminum Leg Wheel Compact Wheel Hover Unit Gravmag System Utility Large Storage Unit Device Structural Scanner Storage Large Storage Unit Protection Improved Light Armor Plating Weapon Small Laser Energy Gun Small Laser Energy Cannon Heavy Ion Cannon Ballistic Gun Assault Rifle Ballistic Cannon Advanced Assault Cannon Special Weapon Remote Datajack Build | -11 -10 -10 -10 -9 -8 -7 ------- Run | Yrd Mat Min Exi Min Mat Fac Slots Evolved 6 | . . . . . 4 2 Power 1 | . . . . . 1 . Propulsion 3 | . . . . . 2 1 Utility 1 | . . . . . 1 . Weapon 1 | . . . . . . 1 Parts Attached 73 | 6 7 . 2 11 42 5 Power 12 | 1 1 . 1 4 5 . Engine 9 | 1 1 . 1 4 2 . Core 3 | . . . . . 3 . Reactor . | . . . . . . . Propulsion 25 | 2 2 . . 4 16 1 Treads . | . . . . . . . Leg 10 | . . . . 1 8 1 Wheel 11 | 2 2 . . 3 4 . Hover 4 | . . . . . 4 . Flight . | . . . . . . . Utility 22 | 1 4 . 1 1 13 2 Device 12 | . 1 . . 1 8 2 Storage 6 | 1 3 . 1 . 1 . Processor . | . . . . . . . Hackware . | . . . . . . . Protection 4 | . . . . . 4 . Artifact . | . . . . . . . Weapon 14 | 2 . . . 2 8 2 Energy Gun 5 | 1 . . . 1 3 . Energy Cannon 1 | . . . . . . 1 Ballistic Gun 6 | 1 . . . 1 4 . Ballistic Cannon 1 | . . . . . 1 . Launcher . | . . . . . . . Special Weapon 1 | . . . . . . 1 Impact Weapon . | . . . . . . . Slashing Weapon . | . . . . . . . Piercing Weapon . | . . . . . . . Special Melee Weapon . | . . . . . . . Unidentified Prototypes 1 | . . . . . 1 . Parts Lost 18 | . . . . 3 10 5 Power 3 | . . . . . 1 2 Propulsion 9 | . . . . 2 5 2 Utility 2 | . . . . . 2 . Weapon 4 | . . . . 1 2 1 Highest Loss Streak 8 | . . . . 3 8 5 To Critical Strikes . | . . . . . . . Average Slot Usage (%) 89 | . 99 100 91 94 82 98 Engine 8 | . 14 14 14 14 2 6 Core 5 | . . . . . 10 6 Leg 13 | . . . . 4 21 37 Wheel 14 | . 28 28 28 21 5 . Device 13 | . 12 14 14 14 13 15 Storage 11 | . 15 14 14 14 9 7 Energy Gun 10 | . 14 14 14 12 8 1 Ballistic Gun 9 | . 14 14 5 13 7 6 Naked Turns . | . . . . . . . Heaviest Build 51 | 11 49 14 25 30 51 48 Greatest Support 50 | 26 32 26 26 32 42 50 Greatest Overweight (x) 8 | . 1 . . 8 7 1 Average Overweight (x) . | . . . . . . . Largest Inventory Capacity 20 | 8 20 8 15 15 15 15 Average Capacity 13 | 6 8 8 12 15 15 15 Most Carried 15 | 4 8 7 14 15 15 15 Average Carried 12 | 1 6 7 9 13 14 14 Final Capacity 15 | 8 8 8 15 15 15 15 Final Carried 15 | 4 7 7 14 15 15 15 Class Distribution -------------------- 49% | Scavenger-Mutant 44% | Mutant Dominant Class ---------------- Mutant | -10/Materials Mutant | -10/Mines Mutant | -10/Exiles Mutant | -9/Mines Scavenger-Mutant | -8/Materials Scavenger-Skirmisher | -7/Factory Resources | -11 -10 -10 -10 -9 -8 -7 ----------- Run | Yrd Mat Min Exi Min Mat Fac Matter Collected 1317 | 247 182 . 116 98 674 . Remotely . | . . . . . . . Salvage Created 1824 | . 384 . . 360 1025 55 Parts 101 | . 23 . . 25 49 4 Haulers Intercepted . | . . . . . . . Recyclers Shooed 2 | . 1 . . . 1 . Parts Field Recycled . | . . . . . . . Retrieved Matter . | . . . . . . . Parts Self-Destructed . | . . . . . . . Prevented . | . . . . . . . Kills | -11 -10 -10 -10 -9 -8 -7 ------- Run | Yrd Mat Min Exi Min Mat Fac Combat Hostiles Destroyed 40 | . 9 . . 7 21 3 Guns 35 | . 9 . . 7 19 . Cannons 2 | . . . . . 1 1 AOE 2 | . . . . . . 2 Classes Destroyed 8 | . 4 . . 2 2 . Worker 4 | . . . . 3 1 . Tunneler 1 | . . . . 1 . . Recycler 3 | . 1 . . 1 1 . Watcher 3 | . 2 . . . 1 . Swarmer 15 | . 5 . . 4 3 3 Grunt 20 | . 4 . . 3 13 . Brawler 1 | . . . . . 1 . Sentry 4 | . . . . . 4 . Best Kill Streak 5 | . 5 . . 4 5 3 Combat Bots Only 5 | . 5 . . 4 5 3 Max Kills in Single Turn 2 | . 1 . . 1 1 2 Gunslinging . | . . . . . . . Exploded 2 | . . . . . . 2 Melee . | . . . . . . . Uniques/NPCs Destroyed . | . . . . . . . Combat | -11 -10 -10 -10 -9 -8 -7 -------- Run | Yrd Mat Min Exi Min Mat Fac Hostile Shots Fired 373 | . 31 . . 36 189 117 Missed 113 | . 5 . . 8 44 56 Damage Taken 2538 | . 255 . . 239 1642 402 Core 535 | . 60 . . 41 372 62 Absorbed by Shields 128 | . . . . . 128 . Ignored by Resistances 786 | . 76 . . 72 509 129 Core Remaining (%) 63 | 100 . . . 59 32 . Volleys Fired 196 | . 60 5 . 34 89 8 Largest 2 | . 2 2 . 2 2 2 Hottest 88 | . 60 60 . 60 88 88 Shots Fired 349 | . 120 10 . 48 160 11 Gun 329 | . 120 10 . 48 148 3 Cannon 20 | . . . . . 12 8 Launcher . | . . . . . . . Special . | . . . . . . . Kinetic 179 | . 60 5 . 28 83 3 Thermal 170 | . 60 5 . 20 77 8 Explosive . | . . . . . . . Electromagnetic . | . . . . . . . Robot Hit Streak 45 | . 9 . . 31 45 4 Robot Miss Streak 4 | . 4 . . 1 2 1 Penetration Max . | . . . . . . . Secondary Targets 1 | . 1 . . . . . Max Gunslinging Chain 1 | . 1 . . . . . Shots Hit Robots 217 | . 37 . . 41 131 8 Core Hits 94 | . 19 . . 21 49 5 Critical Kills 2 | . 1 . . . 1 . Critical Parts Destroyed . | . . . . . . . Critical Strikes 4 | . 1 . . . 3 . Burn 2 | . . . . . 2 . Destroy 2 | . 1 . . . 1 . Melee Attacks . | . . . . . . . Impact . | . . . . . . . Slashing . | . . . . . . . Piercing . | . . . . . . . Sneak Attacks . | . . . . . . . Combat Hostiles . | . . . . . . . Follow-up Attacks . | . . . . . . . Damage Inflicted 3273 | . 426 . . 363 2086 398 Guns 2575 | . 426 . . 363 1759 27 Cannons 487 | . . . . . 327 160 Explosions 211 | . . . . . . 211 Melee . | . . . . . . . Ramming . | . . . . . . . Kinetic 1587 | . 218 . . 189 1153 27 Thermal 1686 | . 208 . . 174 933 371 Explosive . | . . . . . . . Electromagnetic . | . . . . . . . Impact . | . . . . . . . Slashing . | . . . . . . . Piercing . | . . . . . . . Highest Corruption . | . . . . . . . Average Corruption . | . . . . . . . Corruption Purged . | . . . . . . . Corruption Blocked . | . . . . . . . Overload Shots . | . . . . . . . Overflow Damage 8 | . . . . . . 8 Projectiles . | . . . . . . . Explosions 8 | . . . . . . 8 Melee . | . . . . . . . Knockbacks 2 | . . . . . 2 . Impact . | . . . . . . . Kinetic 2 | . . . . . 2 . Secondary . | . . . . . . . Self-Inflicted Damage 36 | . . . . . . 36 Shots 1 | . . . . . . 1 Rammed . | . . . . . . . Targets Rammed . | . . . . . . . Kicked . | . . . . . . . Crushed . | . . . . . . . Highest Temperature 501 | . 48 . . 61 501 80 Average Temperature 132 | . 17 . . 23 170 44 Received Heat Transfer 1469 | . 120 . . 123 1130 96 Effects 11 | . . . . . 11 . Shutdowns 5 | . . . . . 5 . Energy Bleed 1 | . . . . . 1 . Interference 3 | . . . . . 3 . Damage (minor) 2 | . . . . . 2 . Siege Activations . | . . . . . . . Robots Corrupted . | . . . . . . . Combat Hostiles . | . . . . . . . Parts Fried . | . . . . . . . Impact Corruptions . | . . . . . . . Robots Melted 1 | . . . . . 1 . Combat Hostiles 1 | . . . . . 1 . Parts Melted 2 | . . . . . 2 . Heat Transferred 3680 | . 475 . . 400 2433 372 Parts Sabotaged . | . . . . . . . Parts Stolen . | . . . . . . . Parts Stripped . | . . . . . . . Power Chain Reactions . | . . . . . . . Alert | -11 -10 -10 -10 -9 -8 -7 ------- Run | Yrd Mat Min Exi Min Mat Fac Peak Influence 245 | . 161 52 . 155 238 245 Initial 92 | . . 52 . . . 92 Average 84 | . 108 52 . 91 72 110 Maximum Alert Level 1 | . . . . . 1 1 Low Security (%) 97 | 100 100 100 . 100 96 91 Level 1 2 | . . . . . 3 8 Level 2 . | . . . . . . . Level 3 . | . . . . . . . Level 4 . | . . . . . . . Level 5 . | . . . . . . . High Security . | . . . . . . . Max Security . | . . . . . . . Squads Dispatched 2 | . . . . . 2 . Investigation . | . . . . . . . Extermination . | . . . . . . . Reinforcement 1 | . . . . . 1 . Assault . | . . . . . . . Garrison 1 | . . . . . 1 . Intercept . | . . . . . . . Searches Triggered . | . . . . . . . Construction Impeded . | . . . . . . . Haulers Reinforced . | . . . . . . . Active Scanning Responses . | . . . . . . . Cargo Convoy Interrupts . | . . . . . . . Stealth | -11 -10 -10 -10 -9 -8 -7 --------- Run | Yrd Mat Min Exi Min Mat Fac Distress Signals 4 | . . . . . 4 . Communications Jammed . | . . . . . . . Distress Signals . | . . . . . . . Times Spotted 65 | . 13 . . 7 40 5 Peak Tracking Total 7 | . 3 . . 4 7 5 Tactical Retreats 5 | . 1 . . . 4 . Traps | -11 -10 -10 -10 -9 -8 -7 ------- Run | Yrd Mat Min Exi Min Mat Fac Traps Triggered 1 | . 1 . . . . . Indirectly . | . . . . . . . Trap Hack Attempts . | . . . . . . . Triggered . | . . . . . . . Disarmed . | . . . . . . . Reprogrammed . | . . . . . . . Reused . | . . . . . . . Traps Extracted . | . . . . . . . Installed . | . . . . . . . Triggered . | . . . . . . . Most Traps Carried 4 | . . . . 4 4 . Machines | -11 -10 -10 -10 -9 -8 -7 ---------- Run | Yrd Mat Min Exi Min Mat Fac Machines Disabled 6 | . 1 . . . 1 4 Max in Single Turn 4 | . 1 . . . 1 4 Machines Repaired . | . . . . . . . Machines Dismantled . | . . . . . . . Machines Sabotaged . | . . . . . . . Overloaded Fab Kills . | . . . . . . . Hacking | -11 -10 -10 -10 -9 -8 -7 --------- Run | Yrd Mat Min Exi Min Mat Fac Machines Accessed 9 | . 3 . 1 . 5 . Terminals 6 | . 3 . . . 3 . Fabricators . | . . . . . . . Repair Stations . | . . . . . . . Recycling Units 1 | . . . . . 1 . Scanalyzers 1 | . . . . . 1 . Garrison Access . | . . . . . . . Total Hacks 19 | . 5 . 5 . 9 . Successful 18 | . 4 . 5 . 9 . Failed 1 | . 1 . . . . . Catastrophic . | . . . . . . . Database Lockouts . | . . . . . . . Manual 2 | . 1 . . . 1 . Terminals 10 | . 5 . . . 5 . Fabricators . | . . . . . . . Repair Stations . | . . . . . . . Recycling Units 1 | . . . . . 1 . Scanalyzers 3 | . . . . . 3 . Garrison Access . | . . . . . . . Terminal Hacks 14 | . 4 . 5 . 5 . Record 12 | . 4 . 5 . 3 . Alert Level 1 | . . . . . 1 . Zone Layout 1 | . . . . . 1 . Fabricator Hacks . | . . . . . . . Repair Station Hacks . | . . . . . . . Recycling Unit Hacks 1 | . . . . . 1 . Report Inventory 1 | . . . . . 1 . Scanalyzer 3 | . . . . . 3 . Insert Component 1 | . . . . . 1 . Analyze 2 | . . . . . 2 . Garrison Access Hacks . | . . . . . . . Unauthorized Hacks . | . . . . . . . Terminals . | . . . . . . . Fabricators . | . . . . . . . Repair Stations . | . . . . . . . Recycling Units . | . . . . . . . Scanalyzers . | . . . . . . . Garrison Access . | . . . . . . . Data Cores Recovered . | . . . . . . . Used . | . . . . . . . Hacking Detections 1 | . 1 . . . . . Full Trace Events . | . . . . . . . Feedback Events . | . . . . . . . Feedback Blocked . | . . . . . . . Robot Schematics Acquired . | . . . . . . . Robots Built . | . . . . . . . Authchips . | . . . . . . . Time . | . . . . . . . Total Robot Build Rating . | . . . . . . . Part Schematics Acquired 1 | . . . . . 1 . Parts Built . | . . . . . . . Authchips . | . . . . . . . Time . | . . . . . . . Total Part Build Rating . | . . . . . . . Parts Repaired . | . . . . . . . Time . | . . . . . . . Parts Recycled . | . . . . . . . Recycled Matter . | . . . . . . . Retrieved Matter . | . . . . . . . Retrieved Components . | . . . . . . . Parts Scanalyzed 1 | . . . . . 1 . Part Schematics Acquired 1 | . . . . . 1 . Parts Damaged . | . . . . . . . Bothacking | -11 -10 -10 -10 -9 -8 -7 ------------ Run | Yrd Mat Min Exi Min Mat Fac Used RIF Installer . | . . . . . . . Robots Hacked . | . . . . . . . Non-combat . | . . . . . . . Combat . | . . . . . . . Robot Hacks Applied . | . . . . . . . Relay Couplers Released . | . . . . . . . Fabnet Peak Effective % . | . . . . . . . Robots Rewired . | . . . . . . . Allies Hacked . | . . . . . . . Hacks Repelled . | . . . . . . . Allies | -11 -10 -10 -10 -9 -8 -7 -------- Run | Yrd Mat Min Exi Min Mat Fac Total Allies 1 | . . . . 1 . . Largest Group 1 | . . . . 1 1 . Highest-Rated Group 31 | . . . . 31 31 . Highest-Rated Ally 31 | . . . . 31 31 . Total Orders . | . . . . . . . Ally Attacks . | . . . . . . . Total Damage . | . . . . . . . Kills . | . . . . . . . Allies Corrupted . | . . . . . . . Allies Melted . | . . . . . . . Intel | -11 -10 -10 -10 -9 -8 -7 ------- Run | Yrd Mat Min Exi Min Mat Fac Robot Analysis Total . | . . . . . . . Derelict Logs Recovered 2 | . . 1 . 1 . . Drone Launches . | . . . . . . . Drone Recoveries . | . . . . . . . Exploration | -11 -10 -10 -10 -9 -8 -7 ------------- Run | Yrd Mat Min Exi Min Mat Fac Turns Passed 3312 | 57 633 55 252 577 1531 207 Spaces Moved 2039 | 49 422 45 266 429 681 147 Core 17 | 6 . . . 3 8 . Treads . | . . . . . . . Legs 615 | . . . . 20 448 147 Wheels 1403 | 43 422 45 266 406 221 . Hover 4 | . . . . . 4 . Flight . | . . . . . . . Fastest Speed 48 | 50 90 90 90 90 48 120 Average Speed 116 | 86 93 90 90 107 151 120 Slowest Speed 450 | 100 105 90 90 450 400 190 Overloaded Moves . | . . . . . . . Propulsion Burnouts . | . . . . . . . Robots Hopped . | . . . . . . . Cave-ins Triggered . | . . . . . . . Exploration Rate (%) 35 | 3 55 10 57 86 30 4 Regions Visited 6 Branch Regions 3 Pre-discovered Areas 2 | . . 1 1 . . . Known Exits Taken 1 | . . . . 1 . . Unknown Exits Taken 5 | 1 1 1 1 . 1 . Scrap Searched 2 | . . . . 2 . . Spaces Dug . | . . . . . . . Terrain Destroyed 28 | . . . . . . 28 Melee . | . . . . . . . Projectile 1 | . . . . . . 1 AOE 27 | . . . . . . 27 Terrain Rammed . | . . . . . . . Walls Destroyed . | . . . . . . . Machines Disabled . | . . . . . . . Actions | -11 -10 -10 -10 -9 -8 -7 --------- Run | Yrd Mat Min Exi Min Mat Fac Total 2631 | 60 544 49 278 506 1029 165 Wait 200 | 1 34 . . 9 154 2 Move 2033 | 48 421 44 265 428 680 147 Hop . | . . . . . . . Pick Up 53 | 5 12 . 8 9 18 1 Fast Attach 50 | 5 5 . 1 9 28 2 Attach 19 | 1 1 . . 1 13 3 Detach 19 | . . . 1 3 13 2 Swap 4 | . 1 . 1 1 1 . Drop 56 | . 10 . 1 12 33 . Fire 196 | . 60 5 . 34 89 8 Melee . | . . . . . . . Ram . | . . . . . . . Kick . | . . . . . . . Crush . | . . . . . . . Escape Stasis . | . . . . . . . Rewire 1 | . . . 1 . . . Trap . | . . . . . . . Miscellaneous . | . . . . . . . Route ------- -11/Scrapyard -10/Materials -10/Mines -10/Exiles (discovered 2 exits: [*Min x2]) -9/Mines -8/Materials -7/Factory History --------- Turn | Location | Event 25 | -11/Scrapyard | Discovered new exit (range 16) 58 | -11/Scrapyard | Entered Materials 316 | -10/Materials | Build established: Mutant 518 | -10/Materials | Discovered new exit (range 7) 691 | -10/Materials | Entered Mines 729 | -10/Mines | Met a Derelict bent on vengeance 743 | -10/Mines | Deemed a non-threat by the Exiles lab entrance 743 | -10/Mines | Discovered new exit (range 5) 746 | -10/Mines | Entered Exiles 771 | -10/Exiles | Discovered new exit (range 15) 782 | -10/Exiles | Met 8R-AWN 799 | -10/Exiles | Met EX-HEX 891 | -10/Exiles | Met EX-DEC 916 | -10/Exiles | Learned location of Zion (-7) 987 | -10/Exiles | Discovered new exit (range 14) 998 | -10/Exiles | Entered Mines 1102 | -9/Mines | Lost 3 parts (2n1w) 1201 | -9/Mines | Identified exit to Materials 1386 | -9/Mines | Found a hidden stash of uninstalled traps 1478 | -9/Mines | Received a Mining Laser from a helpful Derelict 1575 | -9/Mines | Entered Materials 1575 | -8/Materials | Accompanied by 1 ally 1575 | -8/Materials | Evolved 4 slots: Power x1, Propulsion x2, Utility x1 1721 | -8/Materials | Build established: Scavenger-Mutant 1914 | -8/Materials | Lost 8 parts (1p3n2u2w) 2410 | -8/Materials | Core integrity fell below 50% 3029 | -8/Materials | Garrison activated, responded to threat 3094 | -8/Materials | Discovered new exit (range 11) 3106 | -8/Materials | Entered Factory 3106 | -7/Factory | Evolved 2 slots: Propulsion x1, Weapon x1 3313 | -7/Factory | Self-destructed Last Messages --------------- user/advanced.cfg condenseSlotTypeHeaders. Acquired Hvy. Ion Cannon. Acquired Microactuators. Connecting with Recycling Unit... Current location identified: Factory Acquired Transmission Jammer. ALERT: All DSF locations entering lockdown mode. S-27 Virus destroyed. Fusion Modulator explodes. S-27 Virus destroyed. Fusion Modulator explodes. S-27 Virus destroyed. Fusion Modulator explodes. Hvy. Assault Rifle destroyed. Destroyed Hvy. Assault Rifle. Aluminum Leg destroyed. Lgt. Nuclear Core destroyed. Lgt. Ion Engine destroyed. Aluminum Leg destroyed. [Achievement: Achiever] Map ----- +----------------------------------------------------+ | """ """ """ #???????????????????????????????????? | | "Y """ """ !#???????????????????????????????????? | | """ """ """ #???????????????????????????????????? | | #???????????????????????????????????? | | ! !#???????????????????????????????????? | | ######+#######???????????????????????????????????? | | ???# #????????????????????????????????????? | | ???# #????????????????????????????????????? | | ???# #????????????????????????????????????? | | #### ##+#######??????????????????????????????? | | + # #??????????????????????????????? | | # # #??????????????????????????????? | | # # #??????????????????????????????? | | # # #??????????????????????????????? | | # # [ #??????????????????????????????? | | # #] ! #??????????????????????????????? | | # # #??????????????????????????????? | | # # #??????????????????????????????? | | # # ! ! #??????????????????????????????? | | #### ###+###########?????????????????????????? | | #?????????????????????????? | | #?????????????????????????? | | ##############????????????? | | # #????????????? | | # #????????????? | | ######+########### # @ [ #????????????? | | #????# # #????????????? | | T ! #????# Y #????????????? | | #????# #????????????? | | #????# #????????????? | | [ #????# #????????????? | | #???# #????????????? | | """"""" ^ ##???##### ; #????????????? | | """"""" #????????; ; #????????????? | | """"""" #????????#Y; #????????????? | | ????"""" #????????# ;;; ;;;;##????????????? | | ???????? #????????# ; * ; ; #?????????????? | | ???????? #????????# ##; ##### ###?????????????? | | ????????#####????????! ?# #???? #???????????????? | | ????????????????????? ?? ?????????????????????? | | ????????????????????? ??##?????????????????????? | | ??????????????????????+#?????????????????????????? | | ?????????????????????????????????????????????????? | | ?????????????????????????????????????????????????? | | ?????????????????????????????????????????????????? | | ?????????????????????????????????????????????????? | | ?????????????????????????????????????????????????? | | ?????????????????????????????????????????????????? | | ?????????????????????????????????????????????????? | | ?????????????????????????????????????????????????? | +----------------------------------------------------+ Best States ------------- Heat Dissipation 58 Energy Generation 23 Energy Capacity 325 Matter Stores 300 Matter Capacity 300 Sight Range 16 Robot Scan Range 15 Terrain Scan Range 16 Terrain Scan Density 10 ECM Strength 1 Jamming Range 12 Armor Coverage 225 Resistance: KI 50 Resistance: TH 20 Resistance: EX 20 Resistance: EM 20 Resistance: I 20 Resistance: S 20 Resistance: P 20 Evasion (%) 55 Offensive Hacking 10 Item Schematics ----------------- Aluminum Leg | -8/Materials | Scanalyzed Robot Schematics ------------------ None Fabricated ------------ Nothing Alien Tech Used ----------------- None Achievements -------------- Achiever Challenges ------------ None Game ------ Seed BeamThiefMagmablaster Manual? 0 Play Time 00:59:44 Cumulative 31.8 hours Start 2024.04.06 @ 18:26:50 End 2024.04.06 @ 19:26:29 Sessions 1 Manual Loads 0 Difficulty Adventurer Special Mode None Game No. 38 Rogue 0 Adventurer 38 Explorer 0 Win Type - Total 0 Types 0/0/0/0/0/0/0/0/0 Lore% 20 Gallery% 32 Achievement% 25 Wizard Run 0 Options --------- Layout 1 ASCII 0 Keyboard 1 Movement Numpad Keybinds 0 Fullscreen 1 Font 24/Smallcaps Map View 50x35 Zoom Use 2% Tactical HUD 0 Map Filters NONE Filters NONE Steam 1 RUN: a0449602-9f2e-4c91-a222-832bac0de7c7